fUSD/lending_fUSD_20250217
["ID","MTS","AMOUNT","RATE_DAILY","PERIOD"]
[353356840,1739794245102,-1012.47,0.00013698,2]
[353356841,1739794245112,-242.6446157,0.00013698,2]
[353356842,1739794245130,-769.8253843,0.00013698,2]
[353356843,1739794245139,-500.0,0.00013698,2]
[353356844,1739794245149,-1012.47,0.00013698,2]
[353356845,1739794245158,-149.74072836,0.00013698,2]
[353356846,1739794245170,-862.72927164,0.00013698,2]
[353356847,1739794245179,-500.0,0.00013698,2]
[353356848,1739794245188,-1012.47,0.00013698,2]
[353356849,1739794245204,-1012.47,0.00013698,2]
[353356850,1739794245226,-1012.47,0.00013698,2]
[353356851,1739794245249,-498.49548242,0.00013698,2]
[353356852,1739794245272,-1012.47,0.00013698,2]
[353356853,1739794245295,-632.42,0.00013698,2]
[353356854,1739794245317,-500.0,0.00013698,2]
[353356855,1739794245338,-552.6,0.00013698,2]
[353356856,1739794245359,-632.42,0.00013698,2]
[353356857,1739794245381,-500.0,0.00013698,2]
[353356858,1739794245404,-632.42,0.00013698,2]
[353356859,1739794245425,-632.42,0.00013698,2]
[353356860,1739794245446,-632.42,0.00013698,2]
[353356861,1739794245467,-632.42,0.00013698,2]
[353356862,1739794245477,-632.42,0.00013698,2]
[353356863,1739794245486,-1409.76,0.00013698,2]
[353356864,1739794245495,-632.42,0.00013698,2]
[353356865,1739794245505,-632.42,0.00013698,2]
[353356866,1739794245515,-632.42,0.00013698,2]
[353356867,1739794245525,-500.0,0.00013698,2]
[353356868,1739794245535,-500.0,0.00013698,2]
[353356869,1739794245549,-500.0,0.00013698,2]
[353356870,1739794245559,-500.0,0.00013698,2]
[353356871,1739794245569,-505.78309902,0.00013698,2]
[353356872,1739794245579,-500.0,0.00013698,2]
[353356873,1739794245588,-748.47,0.00013698,2]
[353356874,1739794245598,-500.0,0.00013698,2]
[353356875,1739794245607,-500.0,0.00013698,2]
[353356876,1739794245617,-465.51214692,0.00013698,2]
[353356878,1739794245629,-34.48785308,0.00013698,2]
[353356879,1739794245639,-500.0,0.00013698,2]
[353356881,1739794245648,-500.0,0.00013698,2]
[353356883,1739794245658,-500.0,0.00013698,2]
[353356884,1739794245667,-1266.32,0.00013698,2]
[353356885,1739794245676,-1287.09,0.00013698,2]
[353356886,1739794245687,-500.0,0.00013698,2]
[353356887,1739794245697,-28.025968,0.00013698,2]
[353356888,1739794245737,-471.974032,0.00013698,2]
[353356889,1739794245748,-500.0,0.00013698,2]
[353356890,1739794245758,-500.0,0.00013698,2]
[353356891,1739794245767,-548.39359317,0.00013698,2]
[353356892,1739794245777,-1536.68,0.00013698,2]
[353356893,1739794245788,-500.0,0.00013698,2]
[353356894,1739794245800,-500.0,0.00013698,2]
[353356895,1739794245810,-500.0,0.00013698,2]
[353356896,1739794245819,-501.69146371,0.00013698,2]
[353356897,1739794245828,-534.97,0.00013698,2]
[353356898,1739794245837,-1294.42,0.00013698,2]
[353356899,1739794245846,-500.0,0.00013698,2]
[353356900,1739794245855,-500.0,0.00013698,2]
[353356901,1739794245864,-526.12,0.00013698,2]
[353356902,1739794245874,-203.15045017,0.00013698,2]
[353356903,1739794245884,-500.0,0.00013698,2]
[353356904,1739794245893,-968.26,0.00013698,2]
[353356905,1739794245902,-500.0,0.00013698,2]
[353356906,1739794245911,-500.0,0.00013698,2]
[353356907,1739794245921,-500.0,0.00013698,2]
[353356908,1739794245930,-500.0,0.00013698,2]
[353356909,1739794245939,-500.0,0.00013698,2]
[353356910,1739794245950,-500.0,0.00013698,2]
[353356911,1739794245959,-1012.04,0.00013698,2]
[353356912,1739794245969,-500.0,0.00013698,2]
[353356913,1739794245978,-500.0,0.00013698,2]
[353356914,1739794245989,-500.0,0.00013698,2]
[353356915,1739794245998,-500.0,0.00013698,2]
[353356916,1739794246008,-500.0,0.00013698,2]
[353356917,1739794246018,-500.0,0.00013698,2]
[353356918,1739794246028,-883.87,0.00013698,2]
[353356919,1739794246037,-1048.74,0.00013698,2]
[353356920,1739794246046,-500.0,0.00013698,2]
[353356921,1739794246055,-500.0,0.00013698,2]
[353356922,1739794246065,-500.0,0.00013698,2]
[353356923,1739794246074,-500.0,0.00013698,2]
[353356924,1739794246083,-500.0,0.00013698,2]
[353356925,1739794246093,-500.0,0.00013698,2]
[353356926,1739794246102,-500.0,0.00013698,2]
[353356927,1739794246111,-500.0,0.00013698,2]
[353356928,1739794246120,-500.0,0.00013698,2]
[353356929,1739794246129,-732.77,0.00013698,2]
[353356930,1739794246139,-500.0,0.00013698,2]
[353356931,1739794246147,-500.0,0.00013698,2]
[353356932,1739794246156,-500.0,0.00013698,2]
[353356933,1739794246165,-500.0,0.00013698,2]
[353356934,1739794246176,-500.0,0.00013698,2]
[353356935,1739794246187,-500.0,0.00013698,2]
[353356936,1739794246198,-500.0,0.00013698,2]
[353356937,1739794246207,-500.0,0.00013698,2]
[353356938,1739794246217,-533.31,0.00013698,2]
[353356939,1739794246228,-500.0,0.00013698,2]
[353356940,1739794246238,-679.11,0.00013698,2]
[353356941,1739794246248,-500.0,0.00013698,2]
[353356942,1739794246257,-500.0,0.00013698,2]
[353356943,1739794246266,-216.50770705,0.00013698,2]
[353356944,1739794246275,-500.0,0.00013698,2]
[353356945,1739794246284,-501.33828995,0.00013698,2]
[353356946,1739794246294,-500.0,0.00013698,2]
[353356947,1739794246304,-500.0,0.00013698,2]
[353356948,1739794246314,-500.0,0.00013698,2]
[353356949,1739794246326,-657.17,0.00013698,2]
[353356950,1739794246335,-500.0,0.00013698,2]
[353356951,1739794246346,-1599.18,0.00013698,2]
[353356952,1739794246355,-500.0,0.00013698,2]
[353356953,1739794246364,-500.0,0.00013698,2]
[353356954,1739794246374,-500.0,0.00013698,2]
[353356955,1739794246383,-500.0,0.00013698,2]
[353356956,1739794246393,-500.0,0.00013698,2]
[353356957,1739794246403,-500.0,0.00013698,2]
[353356958,1739794246414,-500.0,0.00013698,2]
[353356959,1739794246424,-500.0,0.00013698,2]
[353356960,1739794246434,-500.0,0.00013698,2]
[353356961,1739794246444,-625.22632406,0.00013698,2]
[353356962,1739794246453,-500.0,0.00013698,2]
[353356963,1739794246462,-500.0,0.00013698,2]
[353356964,1739794246471,-500.0,0.00013698,2]
[353356965,1739794246481,-924.61,0.00013698,2]
[353356966,1739794246491,-500.0,0.00013698,2]
[353356967,1739794246500,-954.96,0.00013698,2]
[353356968,1739794246510,-261.74921908,0.00013698,2]
[353356969,1739794246519,-500.0,0.00013698,2]
[353356970,1739794246529,-500.0,0.00013698,2]
[353356971,1739794246541,-500.0,0.00013698,2]
[353356972,1739794246551,-500.0,0.00013698,2]
[353356973,1739794246561,-500.0,0.00013698,2]
[353356974,1739794246570,-1627.19,0.00013698,2]
[353356975,1739794246579,-500.0,0.00013698,2]
[353356976,1739794246590,-500.0,0.00013698,2]
[353356977,1739794246599,-500.0,0.00013698,2]
[353356978,1739794246608,-500.0,0.00013698,2]
[353356979,1739794246620,-500.0,0.00013698,2]
[353356980,1739794246630,-500.0,0.00013698,2]
[353356981,1739794246639,-500.0,0.00013698,2]
[353356982,1739794246649,-500.0,0.00013698,2]
[353356983,1739794246659,-1301.64,0.00013698,2]
[353356984,1739794246669,-500.0,0.00013698,2]
[353356985,1739794246679,-500.0,0.00013698,2]
[353356986,1739794246688,-304.53541682,0.00013698,2]
[353356987,1739794246697,-500.0,0.00013698,2]
[353356988,1739794246706,-1071.39,0.00013698,2]
[353356989,1739794246716,-739.93,0.00013698,2]
[353356990,1739794246725,-500.0,0.00013698,2]
[353356991,1739794246734,-689.47,0.00013698,2]
[353356992,1739794246743,-500.0,0.00013698,2]
[353356993,1739794246752,-500.0,0.00013698,2]
[353356994,1739794246762,-500.0,0.00013698,2]
[353356995,1739794246771,-377.07893423,0.00013698,2]
[353356996,1739794246780,-500.0,0.00013698,2]
[353356997,1739794246789,-500.0,0.00013698,2]
[353356998,1739794246798,-500.0,0.00013698,2]
[353356999,1739794246808,-1535.22,0.00013698,2]
[353357000,1739794246817,-500.58898515,0.00013698,2]
[353357001,1739794246828,-1422.56,0.00013698,2]
[353357002,1739794246838,-500.0,0.00013698,2]
[353357003,1739794246847,-500.0,0.00013698,2]
[353357004,1739794246857,-500.0,0.00013698,2]
[353357005,1739794246867,-1002.89,0.00013698,2]
[353357006,1739794246877,-500.0,0.00013698,2]
[353357007,1739794246886,-500.0,0.00013698,2]
[353357008,1739794246895,-500.0,0.00013698,2]
[353357009,1739794246905,-1444.68,0.00013698,2]
[353357010,1739794246915,-507.70732786,0.00013698,2]
[353357011,1739794246924,-500.0,0.00013698,2]
[353357012,1739794246933,-805.49,0.00013698,2]
[353357013,1739794246945,-500.0,0.00013698,2]
[353357014,1739794246955,-500.0,0.00013698,2]
[353357015,1739794246964,-500.0,0.00013698,2]
[353357016,1739794246974,-500.0,0.00013698,2]
[353357017,1739794246984,-500.0,0.00013698,2]
[353357018,1739794246994,-1013.65,0.00013698,2]
[353357019,1739794247004,-760.9,0.00013698,2]
[353357020,1739794247014,-602.76,0.00013698,2]
[353357021,1739794247023,-500.0,0.00013698,2]
[353357022,1739794247033,-500.0,0.00013698,2]
[353357023,1739794247043,-500.0,0.00013698,2]
[353357024,1739794247053,-500.0,0.00013698,2]
[353357025,1739794247064,-500.0,0.00013698,2]
[353357026,1739794247075,-500.0,0.00013698,2]
[353357027,1739794247212,-500.0,0.00013698,2]
[353357028,1739794247319,-1107.54,0.00013698,2]
[353357029,1739794247393,-500.0,0.00013698,2]
[353357030,1739794247504,-500.0,0.00013698,2]
[353357031,1739794247623,-500.0,0.00013698,2]
[353357032,1739794247722,-500.0,0.00013698,2]
[353357033,1739794247840,-500.0,0.00013698,2]
[353357034,1739794247968,-1505.36,0.00013698,2]
[353357035,1739794248093,-500.0,0.00013698,2]
[353357036,1739794248172,-500.0,0.00013698,2]
[353357037,1739794248308,-1375.93,0.00013698,2]
[353357038,1739794248342,-500.0,0.00013698,2]
[353357039,1739794248351,-500.0,0.00013698,2]
[353357040,1739794248361,-500.0,0.00013698,2]
[353357041,1739794248371,-643.74,0.00013698,2]
[353357042,1739794248381,-500.0,0.00013698,2]
[353357043,1739794248391,-536.36,0.00013698,2]
[353357044,1739794248401,-500.0,0.00013698,2]
[353357045,1739794248411,-500.0,0.00013698,2]
[353357046,1739794248420,-1433.6,0.00013698,2]
[353357047,1739794248430,-868.28,0.00013698,2]
[353357048,1739794248440,-500.0,0.00013698,2]
[353357049,1739794248450,-994.53,0.00013698,2]
[353357050,1739794248460,-500.0,0.00013698,2]
[353357051,1739794248470,-500.0,0.00013698,2]
[353357052,1739794248481,-500.0,0.00013698,2]
[353357053,1739794248491,-500.0,0.00013698,2]
[353357054,1739794248500,-500.0,0.00013698,2]
[353357055,1739794248511,-500.0,0.00013698,2]
[353357056,1739794248520,-500.0,0.00013698,2]
[353357057,1739794248530,-1000.78,0.00013698,2]
[353357058,1739794248544,-550.96,0.00013698,2]
[353357059,1739794248554,-500.0,0.00013698,2]
[353357060,1739794248564,-939.86,0.00013698,2]
[353357061,1739794248575,-1366.12,0.00013698,2]
[353357062,1739794248585,-500.0,0.00013698,2]
[353357063,1739794248595,-500.0,0.00013698,2]
[353357064,1739794248605,-500.0,0.00013698,2]
[353357065,1739794248614,-500.0,0.00013698,2]
[353357066,1739794248625,-500.0,0.00013698,2]
[353357067,1739794248635,-500.0,0.00013698,2]
[353357068,1739794248653,-197.212959,0.00013698,2]
[353357069,1739794248665,-500.0,0.00013698,2]
[353357070,1739794248675,-552.63,0.00013698,2]
[353357071,1739794248684,-500.0,0.00013698,2]
[353357072,1739794248693,-2044.19,0.00013698,2]
[353357073,1739794248703,-500.0,0.00013698,2]
[353357074,1739794248714,-500.0,0.00013698,2]
[353357075,1739794248723,-2044.19,0.00013698,2]
[353357076,1739794248733,-2044.19,0.00013698,2]
[353357077,1739794248742,-2044.19,0.00013698,2]
[353357078,1739794248752,-500.0,0.00013698,2]
[353357079,1739794248762,-500.0,0.00013698,2]
[353357080,1739794248773,-2044.19,0.00013698,2]
[353357081,1739794248783,-871.71,0.00013698,2]
[353357082,1739794248794,-2044.19,0.00013698,2]
[353357083,1739794248803,-500.0,0.00013698,2]
[353357084,1739794248813,-2044.19,0.00013698,2]
[353357085,1739794248823,-2044.19,0.00013698,2]
[353357086,1739794248832,-2044.19,0.00013698,2]
[353357087,1739794248842,-2044.19,0.00013698,2]
[353357088,1739794248851,-500.0,0.00013698,2]
[353357089,1739794248862,-1581.99,0.00013698,2]
[353357090,1739794248872,-1390.42,0.00013698,2]
[353357091,1739794248882,-500.0,0.00013698,2]
[353357092,1739794248893,-500.0,0.00013698,2]
[353357093,1739794248903,-500.0,0.00013698,2]
[353357094,1739794248913,-500.0,0.00013698,2]
[353357095,1739794248923,-500.0,0.00013698,2]
[353357096,1739794248934,-500.0,0.00013698,2]
[353357097,1739794248944,-630.86,0.00013698,2]
[353357098,1739794248954,-184.781148,0.00013698,2]
[353357099,1739794248964,-500.0,0.00013698,2]
[353357100,1739794248975,-1386.22,0.00013698,2]
[353357101,1739794248985,-500.0,0.00013698,2]
[353357102,1739794248995,-500.0,0.00013698,2]
[353357103,1739794249005,-500.0,0.00013698,2]
[353357104,1739794249015,-500.0,0.00013698,2]
[353357105,1739794249026,-500.0,0.00013698,2]
[353357106,1739794249036,-500.0,0.00013698,2]
[353357107,1739794249047,-334.46267915,0.00013698,2]
[353357108,1739794249058,-500.0,0.00013698,2]
[353357109,1739794249068,-1364.32,0.00013698,2]
[353357110,1739794249078,-500.0,0.00013698,2]
[353357111,1739794249089,-500.0,0.00013698,2]
[353357112,1739794249100,-500.0,0.00013698,2]
[353357113,1739794249110,-699.39,0.00013698,2]
[353357114,1739794249120,-500.0,0.00013698,2]
[353357115,1739794249131,-500.0,0.00013698,2]
[353357116,1739794249143,-187.95768148,0.00013698,2]
[353357117,1739794249153,-500.0,0.00013698,2]
[353357118,1739794249163,-500.0,0.00013698,2]
[353357119,1739794249173,-500.0,0.00013698,2]
[353357120,1739794249184,-505.22833877,0.00013698,2]
[353357121,1739794249195,-507.03484675,0.00013698,2]
[353357122,1739794249206,-500.0,0.00013698,2]
[353357123,1739794249217,-689.64,0.00013698,2]
[353357124,1739794249227,-500.0,0.00013698,2]
[353357125,1739794249237,-500.0,0.00013698,2]
[353357126,1739794249247,-500.0,0.00013698,2]
[353357127,1739794249258,-757.91,0.00013698,2]
[353357128,1739794249269,-500.0,0.00013698,2]
[353357129,1739794249279,-1080.43,0.00013698,2]
[353357130,1739794249288,-500.0,0.00013698,2]
[353357131,1739794249298,-500.0,0.00013698,2]
[353357132,1739794249308,-500.0,0.00013698,2]
[353357133,1739794249318,-1126.93,0.00013698,2]
[353357134,1739794249329,-4263.05,0.00013698,2]
[353357135,1739794249339,-500.0,0.00013698,2]
[353357136,1739794249349,-500.0,0.00013698,2]
[353357137,1739794249359,-500.0,0.00013698,2]
[353357138,1739794249369,-444.84804732,0.00013698,2]
[353357139,1739794249380,-2803.51,0.00013698,2]
[353357140,1739794249396,-500.0,0.00013698,2]
[353357141,1739794249407,-243.90381176,0.00013698,2]
[353357142,1739794249417,-500.0,0.00013698,2]
[353357143,1739794249429,-713.65,0.00013698,2]
[353357144,1739794249440,-774.12,0.00013698,2]
[353357145,1739794249450,-500.0,0.00013698,2]
[353357146,1739794249461,-500.0,0.00013698,2]
[353357147,1739794249472,-1780.75,0.00013698,2]
[353357148,1739794249483,-838.69,0.00013698,2]
[353357149,1739794249493,-500.0,0.00013698,2]
[353357150,1739794249506,-500.0,0.00013698,2]
[353357151,1739794249518,-1255.28,0.00013698,2]
[353357152,1739794249529,-1255.28,0.00013698,2]
[353357153,1739794249545,-500.0,0.00013698,2]
[353357154,1739794249556,-1589.33,0.00013698,2]
[353357155,1739794249567,-926.78,0.00013698,2]
[353357156,1739794249578,-500.0,0.00013698,2]
[353357157,1739794249591,-500.0,0.00013698,2]
[353357158,1739794249602,-500.0,0.00013698,2]
[353357159,1739794249612,-3885.31,0.00013698,2]
[353357160,1739794249623,-2355.25,0.00013698,2]
[353357161,1739794249634,-1086.37,0.00013698,2]
[353357162,1739794249645,-500.0,0.00013698,2]
[353357163,1739794249655,-500.0,0.00013698,2]
[353357164,1739794249667,-1408.68,0.00013698,2]
[353357165,1739794249677,-672.56,0.00013698,2]
[353357166,1739794249688,-1966.23,0.00013698,2]
[353357167,1739794249698,-500.0,0.00013698,2]
[353357168,1739794249708,-500.0,0.00013698,2]
[353357169,1739794249720,-3889.77989785,0.00013698,2]
[353357170,1739794249731,-500.0,0.00013698,2]
[353357171,1739794249742,-500.0,0.00013698,2]
[353357172,1739794249753,-785.05,0.00013698,2]
[353357173,1739794249765,-3491.5,0.00013698,2]
[353357174,1739794249776,-500.0,0.00013698,2]
[353357175,1739794249788,-500.0,0.00013698,2]
[353357176,1739794249799,-1284.57,0.00013698,2]
[353357177,1739794249810,-187.43084439,0.00013698,2]
[353357178,1739794249821,-500.0,0.00013698,2]
[353357179,1739794249832,-500.0,0.00013698,2]
[353357180,1739794249843,-1230.93,0.00013698,2]
[353357181,1739794249853,-2333.24,0.00013698,2]
[353357182,1739794249863,-500.0,0.00013698,2]
[353357183,1739794249874,-1223.0,0.00013698,2]
[353357184,1739794249884,-500.0,0.00013698,2]
[353357185,1739794249895,-500.0,0.00013698,2]
[353357186,1739794249905,-500.0,0.00013698,2]
[353357187,1739794249916,-500.0,0.00013698,2]
[353357188,1739794249927,-2257.81,0.00013698,2]
[353357189,1739794249938,-500.0,0.00013698,2]
[353357190,1739794249953,-500.0,0.00013698,2]
[353357191,1739794249964,-500.0,0.00013698,2]
[353357192,1739794249974,-2430.11,0.00013698,2]
[353357193,1739794249985,-500.0,0.00013698,2]
[353357194,1739794249996,-502.80383403,0.00013698,2]
[353357195,1739794250007,-2742.38,0.00013698,2]
[353357196,1739794250018,-1185.12,0.00013698,2]
[353357197,1739794250029,-1717.37,0.00013698,2]
[353357198,1739794250039,-500.0,0.00013698,2]
[353357199,1739794250050,-500.0,0.00013698,2]
[353357200,1739794250061,-500.0,0.00013698,2]
[353357201,1739794250072,-500.0,0.00013698,2]
[353357202,1739794250083,-2123.32,0.00013698,2]
[353357203,1739794250093,-500.0,0.00013698,2]
[353357204,1739794250103,-500.0,0.00013698,2]
[353357205,1739794250114,-1497.33,0.00013698,2]
[353357206,1739794250127,-500.0,0.00013698,2]
[353357207,1739794250137,-500.0,0.00013698,2]
[353357208,1739794250148,-6254.78,0.00013698,2]
[353357209,1739794250159,-1224.8,0.00013698,2]
[353357210,1739794250171,-650.23,0.00013698,2]
[353357211,1739794250181,-500.0,0.00013698,2]
[353357212,1739794250192,-502.29523825,0.00013698,2]
[353357213,1739794250203,-500.0,0.00013698,2]
[353357214,1739794250214,-659.89,0.00013698,2]
[353357215,1739794250224,-500.0,0.00013698,2]
[353357216,1739794250235,-500.0,0.00013698,2]
[353357217,1739794250245,-500.0,0.00013698,2]
[353357218,1739794250256,-500.0,0.00013698,2]
[353357219,1739794250267,-4115.96,0.00013698,2]
[353357220,1739794250277,-500.0,0.00013698,2]
[353357221,1739794250287,-1639.47,0.00013698,2]
[353357222,1739794250297,-1458.1,0.00013698,2]
[353357223,1739794250307,-957.89,0.00013698,2]
[353357224,1739794250317,-1704.93,0.00013698,2]
[353357225,1739794250328,-3752.93,0.00013698,2]
[353357226,1739794250338,-500.0,0.00013698,2]
[353357227,1739794250347,-238.22720809,0.00013698,2]
[353357228,1739794250357,-554.06,0.00013698,2]
[353357229,1739794250368,-500.0,0.00013698,2]
[353357230,1739794250378,-500.0,0.00013698,2]
[353357231,1739794250388,-500.0,0.00013698,2]
[353357232,1739794250398,-2442.56,0.00013698,2]
[353357233,1739794250408,-1956.36,0.00013698,2]
[353357234,1739794250418,-787.28,0.00013698,2]
[353357235,1739794250429,-1769.11,0.00013698,2]
[353357236,1739794250439,-500.0,0.00013698,2]
[353357237,1739794250450,-1875.48,0.00013698,2]
[353357238,1739794250460,-511.84,0.00013698,2]
[353357239,1739794250471,-500.0,0.00013698,2]
[353357240,1739794250482,-1455.23,0.00013698,2]
[353357241,1739794250492,-1940.73,0.00013698,2]
[353357242,1739794250501,-500.0,0.00013698,2]
[353357243,1739794250512,-2701.9,0.00013698,2]
[353357244,1739794250522,-504.90043346,0.00013698,2]
[353357245,1739794250533,-500.0,0.00013698,2]
[353357246,1739794250548,-1768.1,0.00013698,2]
[353357247,1739794250559,-3613.68,0.00013698,2]
[353357248,1739794250569,-873.65,0.00013698,2]
[353357249,1739794250579,-1200.0,0.00013698,2]
[353357250,1739794250590,-534.37,0.00013698,2]
[353357251,1739794250600,-500.0,0.00013698,2]
[353357252,1739794250610,-2439.06,0.00013698,2]
[353357253,1739794250620,-3181.54,0.00013698,2]
[353357254,1739794250630,-501.37795754,0.00013698,2]
[353357255,1739794250640,-2029.32,0.00013698,2]
[353357256,1739794250650,-1331.2,0.00013698,2]
[353357257,1739794250660,-854.11,0.00013698,2]
[353357258,1739794250670,-501.16546622,0.00013698,2]
[353357259,1739794250680,-1671.96,0.00013698,2]
[353357260,1739794250690,-500.0,0.00013698,2]
[353357261,1739794250700,-500.0,0.00013698,2]
[353357262,1739794250710,-500.0,0.00013698,2]
[353357263,1739794250720,-2055.83,0.00013698,2]
[353357264,1739794250730,-524.54,0.00013698,2]
[353357265,1739794250740,-2860.85,0.00013698,2]
[353357266,1739794250750,-2214.13,0.00013698,2]
[353357267,1739794250761,-502.46229094,0.00013698,2]
[353357268,1739794250771,-1735.13,0.00013698,2]
[353357269,1739794250781,-1515.74,0.00013698,2]
[353357270,1739794250791,-594.98,0.00013698,2]
[353357271,1739794250802,-313.33376682,0.00013698,2]
[353357272,1739794250812,-500.0,0.00013698,2]
[353357273,1739794250822,-2254.71,0.00013698,2]
[353357274,1739794250831,-566.4,0.00013698,2]
[353357275,1739794250841,-500.0,0.00013698,2]
[353357276,1739794250851,-500.0,0.00013698,2]
[353357277,1739794250861,-2727.28,0.00013698,2]
[353357278,1739794250870,-500.0,0.00013698,2]
[353357279,1739794250881,-1821.02,0.00013698,2]
[353357280,1739794250891,-219.05399199,0.00013698,2]
[353357281,1739794250901,-500.0,0.00013698,2]
[353357282,1739794250911,-500.0,0.00013698,2]
[353357283,1739794250921,-2445.9,0.00013698,2]
[353357284,1739794250931,-500.0,0.00013698,2]
[353357285,1739794250941,-500.0,0.00013698,2]
[353357286,1739794250951,-500.0,0.00013698,2]
[353357287,1739794250960,-734.89,0.00013698,2]
[353357288,1739794250971,-500.0,0.00013698,2]
[353357289,1739794250981,-2732.76,0.00013698,2]
[353357290,1739794250991,-1594.38,0.00013698,2]
[353357291,1739794251002,-2514.23,0.00013698,2]
[353357292,1739794251014,-500.0,0.00013698,2]
[353357293,1739794251024,-155.9957917,0.00013698,2]
[353357294,1739794251035,-500.0,0.00013698,2]
[353357295,1739794251045,-500.0,0.00013698,2]
[353357296,1739794251056,-500.0,0.00013698,2]
[353357297,1739794251068,-2274.81,0.00013698,2]
[353357298,1739794251078,-767.59,0.00013698,2]
[353357299,1739794251088,-2319.81,0.00013698,2]
[353357300,1739794251098,-500.0,0.00013698,2]
[353357301,1739794251108,-1279.04788374,0.00013698,2]
[353357302,1739794252307,-491.79,0.00013623,2]
[353357303,1739794252317,-1234.09211626,0.00013698,2]
[353357304,1739794252326,-1062.64,0.00013698,2]
[353357305,1739794252334,-1656.19,0.00013698,2]
[353357306,1739794252343,-578.03788374,0.00013698,2]
[353357307,1739794252357,-1443.469986,0.00013698,2]
[353357308,1739794252368,-819.15213026,0.00013698,2]
[353357309,1739794252377,-1730.16,0.00013698,2]
[353357310,1739794252386,-500.0,0.00013698,2]
[353357311,1739794252396,-984.5,0.00013698,2]
[353357312,1739794252405,-500.0,0.00013698,2]
[353357313,1739794252414,-932.78,0.00013698,2]
[353357314,1739794252423,-8722.05,0.00013698,2]
[353357315,1739794252433,-546.51,0.00013698,2]
[353357316,1739794252443,-2737.06,0.00013698,2]
[353357317,1739794252453,-2870.18,0.00013698,2]
[353357318,1739794252461,-1293.2,0.00013698,2]
[353357319,1739794252471,-500.0,0.00013698,2]
[353357320,1739794252481,-500.0,0.00013698,2]
[353357321,1739794252491,-1695.55,0.00013698,2]
[353357322,1739794252500,-500.0,0.00013698,2]
[353357323,1739794252510,-502.79685086,0.00013698,2]
[353357324,1739794252519,-1436.8,0.00013698,2]
[353357325,1739794252528,-2118.71,0.00013698,2]
[353357326,1739794252539,-500.0,0.00013698,2]
[353357327,1739794252549,-500.0,0.00013698,2]
[353357328,1739794252559,-6289.11,0.00013698,2]
[353357329,1739794252568,-500.0,0.00013698,2]
[353357330,1739794252578,-1132.66,0.00013698,2]
[353357331,1739794252588,-606.13,0.00013698,2]
[353357332,1739794252597,-662.73,0.00013698,2]
[353357333,1739794252606,-500.0,0.00013698,2]
[353357334,1739794252616,-724.36,0.00013698,2]
[353357335,1739794252625,-1257.32,0.00013698,2]
[353357336,1739794252635,-1284.41,0.00013698,2]
[353357337,1739794252643,-1296.64,0.00013698,2]
[353357338,1739794252652,-500.0,0.00013698,2]
[353357339,1739794252661,-2044.39,0.00013698,2]
[353357340,1739794252670,-500.0,0.00013698,2]
[353357341,1739794252679,-500.0,0.00013698,2]
[353357342,1739794252688,-2491.54,0.00013698,2]